[Event "*** Titled Tuesday Blitz"]
[Site "Chess.com"]
[Date "2020.05.19"]
[Round "4"]
[White "MergenKakabaev"]
[Black "MilanJeremic"]
[Result "1/2-1/2"]
[WhiteElo "2443"]
[BlackElo "2283"]
[TimeControl "180+1"]
[EndTime "12:43:39 PDT"]
[Termination "Game drawn - insufficient material"]

1. e4 {[%clk 0:03:00]} 1... c6 {[%clk 0:02:59.3]} 2. d4 {[%clk 0:03:00.1]} 2...
d5 {[%clk 0:02:59.1]} 3. e5 {[%clk 0:03:00.3]} 3... a6 {[%clk 0:02:58.4]} 4. Be3
{[%clk 0:02:54.2]} 4... g6 {[%clk 0:02:57.3]} 5. h4 {[%clk 0:02:52.9]} 5... h5
{[%clk 0:02:56.9]} 6. Nf3 {[%clk 0:02:52.1]} 6... Bg4 {[%clk 0:02:55.9]} 7. Nbd2
{[%clk 0:02:51.6]} 7... e6 {[%clk 0:02:54.5]} 8. Be2 {[%clk 0:02:51.6]} 8...
Bxf3 {[%clk 0:02:53.7]} 9. Nxf3 {[%clk 0:02:50.7]} 9... Nh6 {[%clk 0:02:50]} 10.
Ng5 {[%clk 0:02:45.1]} 10... Nf5 {[%clk 0:02:47.5]} 11. Bd3 {[%clk 0:02:43]}
11... Be7 {[%clk 0:02:42.1]} 12. Bxf5 {[%clk 0:02:38]} 12... gxf5 {[%clk
0:02:41.7]} 13. Qf3 {[%clk 0:02:29.1]} 13... c5 {[%clk 0:02:32.3]} 14. c3 {[%clk
0:02:21]} 14... cxd4 {[%clk 0:02:29.9]} 15. cxd4 {[%clk 0:02:21.9]} 15... Qa5+
{[%clk 0:02:27.8]} 16. Kf1 {[%clk 0:02:21.7]} 16... Nc6 {[%clk 0:02:26]} 17. a3
{[%clk 0:02:13.5]} 17... Qb5+ {[%clk 0:02:21.6]} 18. Qe2 {[%clk 0:02:12]} 18...
Qxe2+ {[%clk 0:02:12.6]} 19. Kxe2 {[%clk 0:02:10.8]} 19... Bxg5 {[%clk
0:02:02.2]} 20. hxg5 {[%clk 0:02:08.9]} 20... Kd7 {[%clk 0:02:01.7]} 21. Kd3
{[%clk 0:02:08.7]} 21... Ne7 {[%clk 0:01:58.7]} 22. Rh3 {[%clk 0:02:03.7]} 22...
Ng6 {[%clk 0:01:57.3]} 23. g3 {[%clk 0:02:03.7]} 23... h4 {[%clk 0:01:55.3]} 24.
gxh4 {[%clk 0:02:03.4]} 24... Rxh4 {[%clk 0:01:50.5]} 25. Rxh4 {[%clk
0:02:01.7]} 25... Nxh4 {[%clk 0:01:50]} 26. Rh1 {[%clk 0:02:01.7]} 26... Rh8
{[%clk 0:01:46.9]} 27. Bd2 {[%clk 0:01:54.7]} 27... Ng6 {[%clk 0:01:44.3]} 28.
Rh6 {[%clk 0:01:37.7]} 28... b6 {[%clk 0:01:35]} 29. Kc3 {[%clk 0:01:34.5]}
29... Rc8+ {[%clk 0:01:29.4]} 30. Kb3 {[%clk 0:01:32.6]} 30... Rc4 {[%clk
0:01:28.7]} 31. Bc3 {[%clk 0:01:28]} 31... a5 {[%clk 0:01:16.8]} 32. a4 {[%clk
0:01:24.4]} 32... Rc7 {[%clk 0:01:02.1]} 33. Kc2 {[%clk 0:01:16.4]} 33... Kc6
{[%clk 0:00:58.8]} 34. Kd2 {[%clk 0:01:13.6]} 34... Ra7 {[%clk 0:00:51.7]} 35.
Rh7 {[%clk 0:01:11.1]} 35... b5 {[%clk 0:00:47.7]} 36. b3 {[%clk 0:01:09.9]}
36... b4 {[%clk 0:00:47.7]} 37. Bb2 {[%clk 0:01:10]} 37... Rc7 {[%clk
0:00:46.6]} 38. Rg7 {[%clk 0:01:06.7]} 38... Nf4 {[%clk 0:00:45.4]} 39. Bc1
{[%clk 0:00:51.4]} 39... Kb7 {[%clk 0:00:44.4]} 40. Bb2 {[%clk 0:00:38.2]} 40...
Ng6 {[%clk 0:00:43.7]} 41. Rg8 {[%clk 0:00:36.6]} 41... Nh4 {[%clk 0:00:41.2]}
42. Kd3 {[%clk 0:00:24.4]} 42... Nf3 {[%clk 0:00:40.3]} 43. g6 {[%clk 0:00:24]}
43... fxg6 {[%clk 0:00:38.9]} 44. Rxg6 {[%clk 0:00:24.9]} 44... Rc6 {[%clk
0:00:38.4]} 45. Rg7+ {[%clk 0:00:24.3]} 45... Kb6 {[%clk 0:00:37.7]} 46. Rg8
{[%clk 0:00:23.2]} 46... Ne1+ {[%clk 0:00:37]} 47. Kd2 {[%clk 0:00:23.1]} 47...
Nc2 {[%clk 0:00:36.9]} 48. Rg1 {[%clk 0:00:20.7]} 48... Na3 {[%clk 0:00:36.3]}
49. Bxa3 {[%clk 0:00:16.7]} 49... bxa3 {[%clk 0:00:36.4]} 50. Ra1 {[%clk
0:00:17.3]} 50... Rc7 {[%clk 0:00:35]} 51. Rxa3 {[%clk 0:00:17.6]} 51... Rh7
{[%clk 0:00:34.8]} 52. Ra1 {[%clk 0:00:16.9]} 52... Rh4 {[%clk 0:00:33.8]} 53.
Kd3 {[%clk 0:00:17.1]} 53... Rh3+ {[%clk 0:00:33.7]} 54. Kc2 {[%clk 0:00:17.4]}
54... Rf3 {[%clk 0:00:33.7]} 55. Rf1 {[%clk 0:00:17.6]} 55... Rf4 {[%clk
0:00:33.4]} 56. Kc3 {[%clk 0:00:16.7]} 56... Rf3+ {[%clk 0:00:33.5]} 57. Kd2
{[%clk 0:00:17.1]} 57... Rxb3 {[%clk 0:00:33.2]} 58. Rh1 {[%clk 0:00:17.6]}
58... Rb4 {[%clk 0:00:32.8]} 59. Kd3 {[%clk 0:00:18.1]} 59... Rxa4 {[%clk
0:00:32.9]} 60. Rh6 {[%clk 0:00:18.4]} 60... Ra3+ {[%clk 0:00:32.9]} 61. Ke2
{[%clk 0:00:18.5]} 61... Kb5 {[%clk 0:00:32.7]} 62. Rxe6 {[%clk 0:00:18.3]}
62... Kc4 {[%clk 0:00:32.7]} 63. Rf6 {[%clk 0:00:18.5]} 63... Kxd4 {[%clk
0:00:32.3]} 64. e6 {[%clk 0:00:19]} 64... Ra2+ {[%clk 0:00:32.5]} 65. Kf3 {[%clk
0:00:19.2]} 65... Ra1 {[%clk 0:00:31.2]} 66. Rxf5 {[%clk 0:00:15.5]} 66... Re1
{[%clk 0:00:30.9]} 67. Rf7 {[%clk 0:00:15.2]} 67... Rxe6 {[%clk 0:00:29.7]} 68.
Ra7 {[%clk 0:00:15.8]} 68... Rf6+ {[%clk 0:00:27.7]} 69. Ke2 {[%clk 0:00:16.3]}
69... Re6+ {[%clk 0:00:26.3]} 70. Kf1 {[%clk 0:00:16.7]} 70... Kd3 {[%clk
0:00:25.9]} 71. Rxa5 {[%clk 0:00:17.2]} 71... d4 {[%clk 0:00:26.1]} 72. Ra3+
{[%clk 0:00:11.7]} 72... Kc2 {[%clk 0:00:25]} 73. Ra2+ {[%clk 0:00:11.8]} 73...
Kb3 {[%clk 0:00:25.2]} 74. Ra8 {[%clk 0:00:10.3]} 74... d3 {[%clk 0:00:24.9]}
75. Kg2 {[%clk 0:00:06]} 75... d2 {[%clk 0:00:22.5]} 76. Rd8 {[%clk 0:00:02.5]}
76... Kc2 {[%clk 0:00:21.8]} 77. Kg3 {[%clk 0:00:02.9]} 77... d1=Q {[%clk
0:00:19.7]} 78. Rxd1 {[%clk 0:00:03.8]} 78... Kxd1 {[%clk 0:00:19.8]} 79. f4
{[%clk 0:00:04.7]} 79... Ke2 {[%clk 0:00:19.7]} 80. f5 {[%clk 0:00:04.7]} 80...
Rf6 {[%clk 0:00:18.3]} 81. Kf4 {[%clk 0:00:04.8]} 81... Kd3 {[%clk 0:00:17.7]}
82. Ke5 {[%clk 0:00:05.2]} 82... Rf8 {[%clk 0:00:16.3]} 83. f6 {[%clk
0:00:06.1]} 83... Ra8 {[%clk 0:00:14]} 84. Ke6 {[%clk 0:00:06.1]} 84... Kd4
{[%clk 0:00:13.7]} 85. f7 {[%clk 0:00:06.4]} 85... Ra6+ {[%clk 0:00:12.9]} 86.
Ke7 {[%clk 0:00:06.7]} 86... Ra7+ {[%clk 0:00:13]} 87. Ke6 {[%clk 0:00:06.9]}
87... Ra8 {[%clk 0:00:12.3]} 88. Ke7 {[%clk 0:00:07.1]} 88... Ke5 {[%clk
0:00:11.9]} 89. f8=Q {[%clk 0:00:05.2]} 89... Rxf8 {[%clk 0:00:10.9]} 90. Kxf8
{[%clk 0:00:06.1]} 1/2-1/2

[Event "*** Titled Tuesday Blitz"]
[Site "Chess.com"]
[Date "2020.05.19"]
[Round "5"]
[White "CaspiIsrael"]
[Black "GigaQuparadze"]
[Result "0-1"]
[WhiteElo "2605"]
[BlackElo "2860"]
[TimeControl "180+1"]
[EndTime "12:52:00 PDT"]
[Termination "GigaQuparadze won by resignation"]

1. e4 {[%clk 0:03:00.9]} 1... e6 {[%clk 0:02:59.5]} 2. d4 {[%clk 0:02:59.5]}
2... d5 {[%clk 0:02:59.4]} 3. Nd2 {[%clk 0:02:59.5]} 3... c5 {[%clk 0:02:59.1]}
4. Ngf3 {[%clk 0:02:57.7]} 4... cxd4 {[%clk 0:02:58.4]} 5. Nxd4 {[%clk
0:02:58.2]} 5... Nc6 {[%clk 0:02:58.6]} 6. Bb5 {[%clk 0:02:56.1]} 6... Bd7
{[%clk 0:02:58.6]} 7. Nxc6 {[%clk 0:02:55.2]} 7... bxc6 {[%clk 0:02:59.5]} 8.
Bd3 {[%clk 0:02:55.5]} 8... g6 {[%clk 0:03:00.1]} 9. O-O {[%clk 0:02:54.2]} 9...
Bg7 {[%clk 0:02:59.9]} 10. c4 {[%clk 0:02:54.1]} 10... Ne7 {[%clk 0:02:58.9]}
11. exd5 {[%clk 0:02:54.1]} 11... cxd5 {[%clk 0:02:59.8]} 12. Rb1 {[%clk
0:02:46.8]} 12... O-O {[%clk 0:02:59.4]} 13. b3 {[%clk 0:02:46.4]} 13... dxc4
{[%clk 0:02:59.1]} 14. Nxc4 {[%clk 0:02:43.7]} 14... Nd5 {[%clk 0:02:58.9]} 15.
Qf3 {[%clk 0:02:20.8]} 15... Nc3 {[%clk 0:02:56.9]} 16. Rb2 {[%clk 0:02:09.9]}
16... Bc6 {[%clk 0:02:51.9]} 17. Qxc6 {[%clk 0:02:07.9]} 17... Qxd3 {[%clk
0:02:51.8]} 18. Rd2 {[%clk 0:02:06.6]} 18... Ne2+ {[%clk 0:02:51.4]} 19. Kh1
{[%clk 0:02:05.1]} 19... Ng3+ {[%clk 0:02:51.2]} 20. hxg3 {[%clk 0:02:04.1]}
20... Qxf1+ {[%clk 0:02:52.1]} 21. Kh2 {[%clk 0:02:04.8]} 21... Qxc1 {[%clk
0:02:52.5]} 0-1

[Event "*** Titled Tuesday Blitz"]
[Site "Chess.com"]
[Date "2020.05.19"]
[Round "5"]
[White "Xtrmntr78"]
[Black "RenanSoares1972"]
[Result "1-0"]
[WhiteElo "2363"]
[BlackElo "2056"]
[TimeControl "180+1"]
[EndTime "12:53:08 PDT"]
[Termination "Xtrmntr78 won by resignation"]

1. c4 {[%clk 0:03:00.9]} 1... Nf6 {[%clk 0:02:56.9]} 2. Nc3 {[%clk 0:03:00.7]}
2... g6 {[%clk 0:02:56.8]} 3. e4 {[%clk 0:03:00.3]} 3... d6 {[%clk 0:02:56.8]}
4. d4 {[%clk 0:03:00.3]} 4... Bg7 {[%clk 0:02:56.8]} 5. f4 {[%clk 0:03:00.8]}
5... O-O {[%clk 0:02:56.7]} 6. Nf3 {[%clk 0:03:01.1]} 6... c5 {[%clk 0:02:56.8]}
7. d5 {[%clk 0:03:01.6]} 7... b5 {[%clk 0:02:56.6]} 8. cxb5 {[%clk 0:03:00.6]}
8... a6 {[%clk 0:02:56.7]} 9. a4 {[%clk 0:02:52.2]} 9... axb5 {[%clk 0:02:55.1]}
10. Bxb5 {[%clk 0:02:51.9]} 10... Ba6 {[%clk 0:02:55]} 11. Qe2 {[%clk 0:02:50]}
11... Qb6 {[%clk 0:02:50.7]} 12. O-O {[%clk 0:02:46.8]} 12... Bxb5 {[%clk
0:02:45.7]} 13. Nxb5 {[%clk 0:02:46.3]} 13... Na6 {[%clk 0:02:45.1]} 14. Bd2
{[%clk 0:02:43.1]} 14... Nc7 {[%clk 0:02:41.6]} 15. Nxc7 {[%clk 0:02:40.7]}
15... Qxc7 {[%clk 0:02:41.6]} 16. Bc3 {[%clk 0:02:40]} 16... Rfb8 {[%clk
0:02:40.8]} 17. Rfd1 {[%clk 0:02:35.1]} 17... Nd7 {[%clk 0:02:40]} 18. e5 {[%clk
0:02:33.4]} 18... Nb6 {[%clk 0:02:31.4]} 19. a5 {[%clk 0:02:30.7]} 19... Nd7
{[%clk 0:02:27.4]} 20. e6 {[%clk 0:02:28.4]} 20... Nf8 {[%clk 0:02:18.3]} 21.
exf7+ {[%clk 0:02:14.7]} 21... Kxf7 {[%clk 0:02:18.1]} 22. Ng5+ {[%clk
0:02:14.2]} 22... Kg8 {[%clk 0:02:17.4]} 23. Bxg7 {[%clk 0:02:10.3]} 23... Kxg7
{[%clk 0:02:08.1]} 24. Qe6 {[%clk 0:02:09]} 1-0

[Event "*** Titled Tuesday Blitz"]
[Site "Chess.com"]
[Date "2020.05.19"]
[Round "5"]
[White "ecwinslow"]
[Black "lrestevez"]
[Result "1-0"]
[WhiteElo "2203"]
[BlackElo "2023"]
[TimeControl "180+1"]
[EndTime "12:53:12 PDT"]
[Termination "ecwinslow won by resignation"]

1. e4 {[%clk 0:03:00.4]} 1... e5 {[%clk 0:02:53.1]} 2. Nf3 {[%clk 0:02:59.3]}
2... Nc6 {[%clk 0:02:49.4]} 3. d4 {[%clk 0:02:55.7]} 3... exd4 {[%clk
0:02:48.7]} 4. Nxd4 {[%clk 0:02:55.6]} 4... Bc5 {[%clk 0:02:48.8]} 5. Nxc6
{[%clk 0:02:54.7]} 5... Qf6 {[%clk 0:02:48.3]} 6. Qf3 {[%clk 0:02:55.1]} 6...
dxc6 {[%clk 0:02:47.8]} 7. Bc4 {[%clk 0:02:50.5]} 7... Qxf3 {[%clk 0:02:44.5]}
8. gxf3 {[%clk 0:02:49.5]} 8... Ne7 {[%clk 0:02:44.5]} 9. h4 {[%clk 0:02:42.6]}
9... Be6 {[%clk 0:02:34.4]} 10. Bxe6 {[%clk 0:02:32.8]} 10... fxe6 {[%clk
0:02:35.3]} 11. Be3 {[%clk 0:02:29.8]} 11... Bxe3 {[%clk 0:02:31.9]} 12. fxe3
{[%clk 0:02:28.8]} 12... O-O {[%clk 0:02:30.5]} 13. Ke2 {[%clk 0:02:25.1]} 13...
Ng6 {[%clk 0:02:28.5]} 14. f4 {[%clk 0:02:19]} 14... e5 {[%clk 0:02:26.8]} 15.
f5 {[%clk 0:02:18]} 15... Ne7 {[%clk 0:02:27.2]} 16. Nd2 {[%clk 0:02:17]} 16...
Rad8 {[%clk 0:02:24.6]} 17. Nf3 {[%clk 0:02:04.8]} 17... Rfe8 {[%clk 0:02:24]}
18. Rhg1 {[%clk 0:02:00.3]} 18... Kf8 {[%clk 0:02:18.3]} 19. Ng5 {[%clk
0:01:58.6]} 19... Kg8 {[%clk 0:01:45.8]} 20. Ne6 {[%clk 0:01:56.4]} 20... Rd7
{[%clk 0:01:42.6]} 21. Rxg7+ {[%clk 0:01:54.3]} 21... Kh8 {[%clk 0:01:42.8]} 22.
Rag1 {[%clk 0:01:51.5]} 1-0

[Event "*** Titled Tuesday Blitz"]
[Site "Chess.com"]
[Date "2020.05.19"]
[Round "5"]
[White "Mitronych"]
[Black "Szczor"]
[Result "1-0"]
[WhiteElo "2463"]
[BlackElo "2621"]
[TimeControl "180+1"]
[EndTime "12:53:15 PDT"]
[Termination "Mitronych won by resignation"]

1. e4 {[%clk 0:03:00.9]} 1... c5 {[%clk 0:02:58.9]} 2. Nf3 {[%clk 0:03:00.3]}
2... d6 {[%clk 0:02:58.8]} 3. d4 {[%clk 0:02:59.7]} 3... cxd4 {[%clk 0:02:59.7]}
4. Nxd4 {[%clk 0:03:00.6]} 4... Nf6 {[%clk 0:03:00.1]} 5. Nc3 {[%clk 0:02:59.3]}
5... a6 {[%clk 0:03:00.2]} 6. f4 {[%clk 0:02:58]} 6... e6 {[%clk 0:02:56.7]} 7.
Qf3 {[%clk 0:02:57.5]} 7... Nbd7 {[%clk 0:02:56.2]} 8. g4 {[%clk 0:02:57]} 8...
h6 {[%clk 0:02:55.3]} 9. h4 {[%clk 0:02:56.2]} 9... Be7 {[%clk 0:02:44]} 10. g5
{[%clk 0:02:54.9]} 10... hxg5 {[%clk 0:02:43.6]} 11. hxg5 {[%clk 0:02:54.9]}
11... Rxh1 {[%clk 0:02:41.9]} 12. Qxh1 {[%clk 0:02:55.8]} 12... Ng8 {[%clk
0:02:40.2]} 13. Qh8 {[%clk 0:02:43.2]} 13... Kf8 {[%clk 0:02:40]} 14. Be3 {[%clk
0:02:31]} 14... Qc7 {[%clk 0:02:26.3]} 15. O-O-O {[%clk 0:02:28.3]} 15... b5
{[%clk 0:02:25.5]} 16. Bd3 {[%clk 0:02:19.6]} 16... b4 {[%clk 0:02:25.1]} 17.
Nce2 {[%clk 0:02:03.5]} 17... Nc5 {[%clk 0:02:22.7]} 18. Kb1 {[%clk 0:01:59.1]}
18... Bb7 {[%clk 0:02:20.6]} 19. Rh1 {[%clk 0:01:47.3]} 19... Bxe4 {[%clk
0:02:05.2]} 20. Bxe4 {[%clk 0:01:44.6]} 20... Nxe4 {[%clk 0:02:05.2]} 21. Rh7
{[%clk 0:01:44.7]} 1-0

[Event "*** Titled Tuesday Blitz"]
[Site "Chess.com"]
[Date "2020.05.19"]
[Round "5"]
[White "Majesth"]
[Black "marszach123"]
[Result "1-0"]
[WhiteElo "2462"]
[BlackElo "2199"]
[TimeControl "180+1"]
[EndTime "12:53:36 PDT"]
[Termination "Majesth won by checkmate"]

1. d4 {[%clk 0:03:00.9]} 1... Nf6 {[%clk 0:02:58]} 2. Nc3 {[%clk 0:03:00.1]}
2... d5 {[%clk 0:02:56.4]} 3. Bf4 {[%clk 0:02:59.5]} 3... c5 {[%clk 0:02:52.8]}
4. e3 {[%clk 0:02:58.6]} 4... e6 {[%clk 0:02:47.3]} 5. Nb5 {[%clk 0:02:56.9]}
5... Na6 {[%clk 0:02:44.6]} 6. Nf3 {[%clk 0:02:57.4]} 6... Be7 {[%clk
0:02:36.5]} 7. Be2 {[%clk 0:02:56.5]} 7... Nh5 {[%clk 0:02:32.8]} 8. Be5 {[%clk
0:02:43.7]} 8... f6 {[%clk 0:02:31.5]} 9. Nh4 {[%clk 0:02:07.6]} 9... fxe5
{[%clk 0:02:29.6]} 10. Bxh5+ {[%clk 0:02:07.2]} 10... g6 {[%clk 0:02:21]} 11.
Bxg6+ {[%clk 0:02:02.9]} 11... hxg6 {[%clk 0:02:18.5]} 12. Nxg6 {[%clk
0:02:03.8]} 12... Rh6 {[%clk 0:02:08.8]} 13. Nxe5 {[%clk 0:02:02.1]} 13... Bd7
{[%clk 0:01:46.8]} 14. Qg4 {[%clk 0:01:45.9]} 14... Bxb5 {[%clk 0:01:25.7]} 15.
Qg8+ {[%clk 0:01:41.7]} 15... Bf8 {[%clk 0:01:24.7]} 16. Qf7# {[%clk 0:01:41.5]}
1-0

[Event "*** Titled Tuesday Blitz"]
[Site "Chess.com"]
[Date "2020.05.19"]
[Round "5"]
[White "csati17"]
[Black "12teen"]
[Result "1-0"]
[WhiteElo "2568"]
[BlackElo "2729"]
[TimeControl "180+1"]
[EndTime "12:53:39 PDT"]
[Termination "csati17 won by resignation"]

1. c4 {[%clk 0:03:00.9]} 1... b6 {[%clk 0:02:58.5]} 2. Nc3 {[%clk 0:03:01]} 2...
Bb7 {[%clk 0:02:59.4]} 3. e4 {[%clk 0:03:01.7]} 3... e6 {[%clk 0:02:59.2]} 4. g3
{[%clk 0:03:01.7]} 4... f5 {[%clk 0:02:54.5]} 5. Bg2 {[%clk 0:03:02]} 5... Nf6
{[%clk 0:02:54.9]} 6. Nge2 {[%clk 0:03:00.8]} 6... fxe4 {[%clk 0:02:51]} 7. d3
{[%clk 0:03:00.1]} 7... Bb4 {[%clk 0:02:28.6]} 8. O-O {[%clk 0:02:59.6]} 8...
Bxc3 {[%clk 0:02:29.1]} 9. Nxc3 {[%clk 0:02:59.2]} 9... d5 {[%clk 0:02:29.8]}
10. dxe4 {[%clk 0:02:58.4]} 10... d4 {[%clk 0:02:29.6]} 11. Nb5 {[%clk
0:02:10.7]} 11... c5 {[%clk 0:02:29.7]} 12. e5 {[%clk 0:02:08.3]} 12... Bxg2
{[%clk 0:02:25.6]} 13. Kxg2 {[%clk 0:02:09.2]} 13... a6 {[%clk 0:01:46.8]} 14.
Nd6+ {[%clk 0:02:03.1]} 14... Kf8 {[%clk 0:01:40.8]} 15. Qf3 {[%clk 0:01:58.5]}
15... Ra7 {[%clk 0:01:40.5]} 16. Ne4 {[%clk 0:01:58.3]} 16... Rf7 {[%clk
0:01:33.5]} 17. Ng5 {[%clk 0:01:51.3]} 17... Re7 {[%clk 0:01:11.6]} 18. exf6
{[%clk 0:01:50.9]} 18... gxf6 {[%clk 0:01:12.5]} 19. Qxf6+ {[%clk 0:01:50.7]}
19... Ke8 {[%clk 0:01:13.4]} 20. Qxh8+ {[%clk 0:01:50.6]} 1-0

[Event "*** Titled Tuesday Blitz"]
[Site "Chess.com"]
[Date "2020.05.19"]
[Round "5"]
[White "Kostya26"]
[Black "Klaus1995"]
[Result "1-0"]
[WhiteElo "2360"]
[BlackElo "1803"]
[TimeControl "180+1"]
[EndTime "12:53:39 PDT"]
[Termination "Kostya26 won by resignation"]

1. e4 {[%clk 0:03:00.9]} 1... c5 {[%clk 0:02:59.2]} 2. Nf3 {[%clk 0:02:57.9]}
2... d6 {[%clk 0:02:58.4]} 3. Bb5+ {[%clk 0:02:51.2]} 3... Bd7 {[%clk 0:02:58]}
4. Bxd7+ {[%clk 0:02:51.3]} 4... Nxd7 {[%clk 0:02:58.9]} 5. c4 {[%clk
0:02:51.8]} 5... e6 {[%clk 0:02:58.3]} 6. Nc3 {[%clk 0:02:52.7]} 6... Ngf6
{[%clk 0:02:58.1]} 7. d4 {[%clk 0:02:53.1]} 7... cxd4 {[%clk 0:02:56.6]} 8. Nxd4
{[%clk 0:02:54]} 8... Be7 {[%clk 0:02:56.7]} 9. O-O {[%clk 0:02:54.3]} 9... O-O
{[%clk 0:02:56.4]} 10. b3 {[%clk 0:02:54.6]} 10... a6 {[%clk 0:02:55.7]} 11. Be3
{[%clk 0:02:54.1]} 11... Rc8 {[%clk 0:02:55]} 12. Rc1 {[%clk 0:02:54]} 12... Qa5
{[%clk 0:02:52.4]} 13. Qd2 {[%clk 0:02:45]} 13... Nc5 {[%clk 0:02:41.3]} 14. Nd5
{[%clk 0:02:35]} 14... Qd8 {[%clk 0:02:36]} 15. Nxe7+ {[%clk 0:02:35.1]} 15...
Qxe7 {[%clk 0:02:36.4]} 16. f3 {[%clk 0:02:36]} 16... d5 {[%clk 0:02:33.2]} 17.
cxd5 {[%clk 0:02:26.8]} 17... exd5 {[%clk 0:02:34.1]} 18. Nf5 {[%clk 0:02:26.9]}
18... Qe6 {[%clk 0:02:09.5]} 19. Bxc5 {[%clk 0:02:23]} 19... Rxc5 {[%clk
0:02:09.2]} 20. Rxc5 {[%clk 0:02:22.4]} 20... Qb6 {[%clk 0:02:09.8]} 21. Qf2
{[%clk 0:02:19.2]} 21... dxe4 {[%clk 0:02:06.3]} 22. Ne7+ {[%clk 0:02:11]} 22...
Kh8 {[%clk 0:02:05.5]} 23. Nd5 {[%clk 0:02:11.6]} 23... Nxd5 {[%clk 0:02:00]}
24. Rxd5 {[%clk 0:02:11.5]} 24... e3 {[%clk 0:01:59.9]} 25. Qe2 {[%clk
0:02:11.6]} 25... Re8 {[%clk 0:01:57]} 26. Re1 {[%clk 0:02:08.5]} 26... h6
{[%clk 0:01:54.8]} 27. f4 {[%clk 0:02:05.1]} 27... Re4 {[%clk 0:01:53.5]} 28.
Rd3 {[%clk 0:01:59.3]} 28... Rxf4 {[%clk 0:01:50.3]} 29. Rxe3 {[%clk 0:01:59.3]}
29... Qb4 {[%clk 0:01:44.5]} 30. Qd3 {[%clk 0:01:52.5]} 30... Qa3 {[%clk
0:01:42.9]} 31. Re8+ {[%clk 0:01:51.4]} 1-0

[Event "*** Titled Tuesday Blitz"]
[Site "Chess.com"]
[Date "2020.05.19"]
[Round "5"]
[White "Kensei26"]
[Black "wild_cat99"]
[Result "0-1"]
[WhiteElo "2257"]
[BlackElo "2555"]
[TimeControl "180+1"]
[EndTime "12:53:42 PDT"]
[Termination "wild_cat99 won by resignation"]

1. e4 {[%clk 0:03:00.9]} 1... c5 {[%clk 0:02:59.8]} 2. Nc3 {[%clk 0:03:00.3]}
2... e6 {[%clk 0:02:59.7]} 3. Nf3 {[%clk 0:02:59.6]} 3... a6 {[%clk 0:02:59.7]}
4. d4 {[%clk 0:02:59.8]} 4... cxd4 {[%clk 0:02:59.6]} 5. Nxd4 {[%clk 0:03:00.7]}
5... d6 {[%clk 0:03:00.1]} 6. Be3 {[%clk 0:02:56.6]} 6... Nf6 {[%clk 0:02:59.3]}
7. f3 {[%clk 0:02:56.2]} 7... b5 {[%clk 0:02:59.1]} 8. Qd2 {[%clk 0:02:56.4]}
8... Nbd7 {[%clk 0:02:57.9]} 9. g4 {[%clk 0:02:55.1]} 9... Nb6 {[%clk 0:02:58]}
10. a4 {[%clk 0:02:55.4]} 10... b4 {[%clk 0:02:56.1]} 11. Na2 {[%clk 0:02:49.8]}
11... d5 {[%clk 0:02:56.5]} 12. e5 {[%clk 0:02:49]} 12... Nfd7 {[%clk
0:02:54.3]} 13. f4 {[%clk 0:02:32.2]} 13... Nc5 {[%clk 0:02:42]} 14. Qg2 {[%clk
0:02:08]} 14... Bb7 {[%clk 0:02:38]} 15. a5 {[%clk 0:02:07.4]} 15... Nc4 {[%clk
0:02:35.7]} 16. Bf2 {[%clk 0:01:58.8]} 16... Nxb2 {[%clk 0:02:31]} 17. Nxb4
{[%clk 0:01:51.9]} 17... Ne4 {[%clk 0:02:31.2]} 18. Nbc6 {[%clk 0:01:46.5]}
18... Bxc6 {[%clk 0:02:29.6]} 19. Nxc6 {[%clk 0:01:46.4]} 19... Qc7 {[%clk
0:02:29.8]} 20. Rb1 {[%clk 0:01:39.9]} 20... Qxc6 {[%clk 0:02:24.4]} 21. c4
{[%clk 0:01:37.7]} 21... Bb4+ {[%clk 0:02:23.2]} 22. Ke2 {[%clk 0:01:36.4]}
22... Nc3+ {[%clk 0:02:23.1]} 23. Kf3 {[%clk 0:01:35.8]} 23... Nxb1 {[%clk
0:02:24]} 24. Kg3 {[%clk 0:01:34.4]} 24... Nd2 {[%clk 0:02:20.4]} 25. Be2 {[%clk
0:01:32.1]} 25... Ne4+ {[%clk 0:02:19]} 26. Kh3 {[%clk 0:01:31.2]} 26... Nc3
{[%clk 0:02:08.6]} 27. Bf3 {[%clk 0:01:29.3]} 27... Nd3 {[%clk 0:02:08.2]} 28.
cxd5 {[%clk 0:01:27.3]} 28... Nxf4+ {[%clk 0:02:07.3]} 29. Kg3 {[%clk
0:01:27.4]} 29... Qc4 {[%clk 0:02:02]} 30. Qg1 {[%clk 0:01:22.6]} 30... Nce2+
{[%clk 0:02:01.9]} 0-1

[Event "*** Titled Tuesday Blitz"]
[Site "Chess.com"]
[Date "2020.05.19"]
[Round "5"]
[White "Isajevsky_Anton"]
[Black "AlexVanGog"]
[Result "0-1"]
[WhiteElo "2419"]
[BlackElo "2662"]
[TimeControl "180+1"]
[EndTime "12:53:54 PDT"]
[Termination "AlexVanGog won by resignation"]

1. c4 {[%clk 0:02:44.6]} 1... e6 {[%clk 0:02:57.9]} 2. Nf3 {[%clk 0:02:43.8]}
2... Nf6 {[%clk 0:02:57.6]} 3. g3 {[%clk 0:02:41]} 3... d5 {[%clk 0:02:57.7]} 4.
Bg2 {[%clk 0:02:39.2]} 4... dxc4 {[%clk 0:02:57.8]} 5. Qa4+ {[%clk 0:02:38.5]}
5... Nbd7 {[%clk 0:02:57.6]} 6. Qxc4 {[%clk 0:02:37.9]} 6... a6 {[%clk
0:02:57.6]} 7. O-O {[%clk 0:02:35.1]} 7... b5 {[%clk 0:02:56.9]} 8. Qc2 {[%clk
0:02:34.4]} 8... Bb7 {[%clk 0:02:56.8]} 9. b3 {[%clk 0:02:30]} 9... Bd6 {[%clk
0:02:56.3]} 10. Bb2 {[%clk 0:02:30.3]} 10... O-O {[%clk 0:02:56.8]} 11. d3
{[%clk 0:02:30.2]} 11... c5 {[%clk 0:02:55.8]} 12. Nbd2 {[%clk 0:02:30.1]} 12...
Qb6 {[%clk 0:02:53.5]} 13. Rac1 {[%clk 0:02:28.4]} 13... Rac8 {[%clk 0:02:52.6]}
14. Qb1 {[%clk 0:02:27.5]} 14... h6 {[%clk 0:02:52.6]} 15. Qa1 {[%clk 0:02:06]}
15... Rfe8 {[%clk 0:02:52.1]} 16. a3 {[%clk 0:01:59.5]} 16... Bf8 {[%clk
0:02:51.5]} 17. Rfd1 {[%clk 0:01:59]} 17... Qa7 {[%clk 0:02:41]} 18. Bf1 {[%clk
0:01:47.7]} 18... Qa8 {[%clk 0:02:40]} 19. Ne5 {[%clk 0:01:44.8]} 19... Nxe5
{[%clk 0:02:39]} 20. Bxe5 {[%clk 0:01:45.7]} 20... Nd7 {[%clk 0:02:32]} 21. Bb2
{[%clk 0:01:46.1]} 21... e5 {[%clk 0:02:20.3]} 22. Ne4 {[%clk 0:01:44.1]} 22...
Bd5 {[%clk 0:01:58.1]} 23. Nd2 {[%clk 0:01:40.2]} 23... Qb7 {[%clk 0:01:55.5]}
24. Qb1 {[%clk 0:01:38.8]} 24... Nf6 {[%clk 0:01:49.8]} 25. Bc3 {[%clk
0:01:36.5]} 25... Nd7 {[%clk 0:01:46.9]} 26. Qb2 {[%clk 0:01:33.3]} 26... b4
{[%clk 0:01:40.2]} 27. axb4 {[%clk 0:01:33.1]} 27... cxb4 {[%clk 0:01:40.3]} 0-1